[Event "Titled Tuesday Blitz March 15 Early 2022"]
[White "Myshakov, Fyodor"]
[Black "Urazayev, Arystanbek"]
[WhiteFideId "14111284"]
[BlackFideId "13709810"]
[WhiteElo "2310"]
[BlackElo "2393"]
[Result "1-0"]
[Round "10"]
[TimeControl "180+1"]
[Date "2022.03.15"]
[WhiteClock "0:00:06"]
[BlackClock "0:00:35"]

1. c4 {[%clk 0:02:59]}  e5 {[%clk 0:02:59]} 2. Nc3 {[%clk 0:02:58]}  Nc6 {[%clk 0:03:00]} 3. Nf3 {[%clk 0:02:58]}  f5 {[%clk 0:03:00]} 4. d3 {[%clk 0:02:58]}  Bb4 {[%clk 0:02:59]} 5. Bd2 {[%clk 0:02:54]}  Nf6 {[%clk 0:02:59]} 6. g3 {[%clk 0:02:54]}  O-O {[%clk 0:02:59]} 7. Bg2 {[%clk 0:02:54]}  d6 {[%clk 0:03:00]} 8. O-O {[%clk 0:02:54]}  Bxc3 {[%clk 0:02:59]} 9. Bxc3 {[%clk 0:02:54]}  Qe8 {[%clk 0:02:59]} 10. b4 {[%clk 0:02:53]}  Qh5 {[%clk 0:02:58]} 11. e3 {[%clk 0:02:51]}  f4 {[%clk 0:02:56]} 12. b5 {[%clk 0:02:48]}  Ne7 {[%clk 0:02:56]} 13. exf4 {[%clk 0:02:45]}  exf4 {[%clk 0:02:56]} 14. Re1 {[%clk 0:02:38]}  Ng6 {[%clk 0:02:56]} 15. Bxf6 {[%clk 0:02:36]}  Rxf6 {[%clk 0:02:57]} 16. Re8+ {[%clk 0:02:35]}  Nf8 {[%clk 0:02:57]} 17. Qe2 {[%clk 0:02:28]}  Re6 {[%clk 0:02:58]} 18. Rxe6 {[%clk 0:02:28]}  Bxe6 {[%clk 0:02:58]} 19. Qe4 {[%clk 0:02:25]}  fxg3 {[%clk 0:02:53]} 20. fxg3 {[%clk 0:02:24]}  Rb8 {[%clk 0:02:52]} 21. Nd4 {[%clk 0:02:19]}  Bf7 {[%clk 0:02:50]} 22. Rf1 {[%clk 0:02:13]}  Re8 {[%clk 0:02:46]} 23. Qf4 {[%clk 0:02:01]}  Re7 {[%clk 0:02:26]} 24. Nf5 {[%clk 0:01:33]}  Rd7 {[%clk 0:02:19]} 25. g4 {[%clk 0:01:21]}  Qg6 {[%clk 0:02:17]} 26. Bxb7 {[%clk 0:01:13]}  Ne6 {[%clk 0:02:17]} 27. Qg3 {[%clk 0:01:10]}  Qf6 {[%clk 0:02:14]} 28. h4 {[%clk 0:00:35]}  Qe5 {[%clk 0:02:03]} 29. Bc8 {[%clk 0:00:30]}  Qc5+ {[%clk 0:01:50]} 30. Kh2 {[%clk 0:00:28]}  Rd8 {[%clk 0:01:50]} 31. Ne7+ {[%clk 0:00:26]}  Kh8 {[%clk 0:01:47]} 32. Bxe6 {[%clk 0:00:21]}  Bxe6 {[%clk 0:01:48]} 33. Qf2 {[%clk 0:00:17]}  Qe5+ {[%clk 0:01:45]} 34. Qg3 {[%clk 0:00:18]}  Qd4 {[%clk 0:01:41]} 35. Nf5 {[%clk 0:00:16]}  Bxf5 {[%clk 0:01:39]} 36. Rxf5 {[%clk 0:00:16]}  g6 {[%clk 0:01:38]} 37. Rf4 {[%clk 0:00:14]}  Qe5 {[%clk 0:01:33]} 38. Rf3 {[%clk 0:00:13]}  Qc3 {[%clk 0:01:24]} 39. Qf4 {[%clk 0:00:12]}  Re8 {[%clk 0:01:21]} 40. Rf2 {[%clk 0:00:07]}  Qg7 {[%clk 0:01:11]} 41. h5 {[%clk 0:00:06]}  gxh5 {[%clk 0:01:10]} 42. gxh5 {[%clk 0:00:07]}  Rg8 {[%clk 0:01:09]} 43. Qf6 {[%clk 0:00:06]}  Qxf6 {[%clk 0:01:07]} 44. Rxf6 {[%clk 0:00:07]}  Kg7 {[%clk 0:01:08]} 45. Rf3 {[%clk 0:00:06]}  Re8 {[%clk 0:01:08]} 46. Kh3 {[%clk 0:00:05]}  Re2 {[%clk 0:01:08]} 47. a4 {[%clk 0:00:04]}  Ra2 {[%clk 0:01:08]} 48. Rg3+ {[%clk 0:00:05]}  Kf7 {[%clk 0:01:08]} 49. h6 {[%clk 0:00:05]}  Rxa4 {[%clk 0:01:03]} 50. Rg7+ {[%clk 0:00:05]}  Kf8 {[%clk 0:01:02]} 51. Rxh7 {[%clk 0:00:06]}  Ra3 {[%clk 0:01:02]} 52. Rxc7 {[%clk 0:00:07]}  Rxd3+ {[%clk 0:01:03]} 53. Kg4 {[%clk 0:00:07]}  Kg8 {[%clk 0:01:03]} 54. Kg5 {[%clk 0:00:06]}  Rd4 {[%clk 0:00:58]} 55. h7+ {[%clk 0:00:06]}  Kh8 {[%clk 0:00:58]} 56. Kf6 {[%clk 0:00:06]}  Re4 {[%clk 0:00:47]} 57. Kg6 {[%clk 0:00:05]}  Re6+ {[%clk 0:00:46]} 58. Kf5 {[%clk 0:00:05]}  Re5+ {[%clk 0:00:44]} 59. Kf6 {[%clk 0:00:04]}  Re4 {[%clk 0:00:43]} 60. Kg6 {[%clk 0:00:04]}  Rg4+ {[%clk 0:00:42]} 61. Kf5 {[%clk 0:00:05]}  Rh4 {[%clk 0:00:42]} 62. Ke6 {[%clk 0:00:05]}  Rd4 {[%clk 0:00:41]} 63. Kd7 {[%clk 0:00:05]}  d5 {[%clk 0:00:40]} 64. c5 {[%clk 0:00:05]}  Ra4 {[%clk 0:00:40]} 65. Kd6 {[%clk 0:00:05]}  d4 {[%clk 0:00:41]} 66. b6 {[%clk 0:00:05]}  axb6 {[%clk 0:00:40]} 67. cxb6 {[%clk 0:00:05]}  d3 {[%clk 0:00:41]} 68. b7 {[%clk 0:00:05]}  Rd4+ {[%clk 0:00:36]} 69. Kc5 {[%clk 0:00:06]}  d2 {[%clk 0:00:36]} 70. b8=Q+ {[%clk 0:00:05]}  Rd8 {[%clk 0:00:35]} 71. Qxd8# {[%clk 0:00:06]} 1-0


[Site "https://www.chess.com"]

[Event "Titled Tuesday Blitz March 15 Early 2022"]
[White "Nenezic, Marko"]
[Black "Kowalczyk, Pawel"]
[WhiteFideId "912123"]
[BlackFideId "1130641"]
[WhiteElo "2752"]
[BlackElo "2699"]
[Result "0-1"]
[Round "10"]
[TimeControl "180+1"]
[Date "2022.03.15"]
[WhiteClock "0:00:25"]
[BlackClock "0:01:41"]

1. Nf3 {[%clk 0:03:00]}  c5 {[%clk 0:03:00]} 2. g3 {[%clk 0:02:59]}  Nc6 {[%clk 0:03:00]} 3. Bg2 {[%clk 0:02:59]}  e5 {[%clk 0:03:00]} 4. e4 {[%clk 0:02:58]}  Nge7 {[%clk 0:03:00]} 5. Na3 {[%clk 0:02:52]}  g6 {[%clk 0:02:58]} 6. Nc4 {[%clk 0:02:52]}  d6 {[%clk 0:02:59]} 7. h4 {[%clk 0:02:52]}  h6 {[%clk 0:02:59]} 8. h5 {[%clk 0:02:48]}  g5 {[%clk 0:02:59]} 9. Ne3 {[%clk 0:02:47]}  f5 {[%clk 0:02:56]} 10. exf5 {[%clk 0:02:43]}  Nxf5 {[%clk 0:02:56]} 11. Nh2 {[%clk 0:02:26]}  Bg7 {[%clk 0:02:51]} 12. Bd5 {[%clk 0:02:25]}  Nce7 {[%clk 0:02:46]} 13. Qf3 {[%clk 0:02:09]}  Nxd5 {[%clk 0:02:35]} 14. Nxf5 {[%clk 0:02:09]}  Bxf5 {[%clk 0:02:24]} 15. Qxf5 {[%clk 0:02:10]}  Qf6 {[%clk 0:02:24]} 16. Qe4 {[%clk 0:01:51]}  Qf7 {[%clk 0:02:24]} 17. Ng4 {[%clk 0:01:43]}  O-O-O {[%clk 0:02:22]} 18. c4 {[%clk 0:01:38]}  Nb4 {[%clk 0:02:21]} 19. a3 {[%clk 0:01:34]}  Nc6 {[%clk 0:02:18]} 20. b4 {[%clk 0:01:34]}  Nd4 {[%clk 0:02:16]} 21. O-O {[%clk 0:01:09]}  Qxc4 {[%clk 0:02:09]} 22. d3 {[%clk 0:00:52]}  Qe6 {[%clk 0:02:03]} 23. bxc5 {[%clk 0:00:52]}  d5 {[%clk 0:02:03]} 24. Qg6 {[%clk 0:00:45]}  Qxg4 {[%clk 0:02:02]} 25. Qxg7 {[%clk 0:00:45]}  Qh3 {[%clk 0:01:56]} 26. f3 {[%clk 0:00:26]}  Qxg3+ {[%clk 0:01:55]} 27. Kh1 {[%clk 0:00:26]}  Qh3+ {[%clk 0:01:56]} 28. Kg1 {[%clk 0:00:27]}  Rhf8 {[%clk 0:01:47]} 29. c6 {[%clk 0:00:25]}  Ne2+ {[%clk 0:01:41]} 0-1


[Site "https://www.chess.com"]

[Event "Titled Tuesday Blitz March 15 Early 2022"]
[White "Polster, Christian"]
[Black "Tasev, Dejan"]
[WhiteFideId "12965081"]
[BlackFideId "936618"]
[WhiteElo "2319"]
[BlackElo "2253"]
[Result "0-1"]
[Round "10"]
[TimeControl "180+1"]
[Date "2022.03.15"]
[WhiteClock "0:00:07"]
[BlackClock "0:00:21"]

1. e4 {[%clk 0:03:00]}  Nf6 {[%clk 0:02:59]} 2. d4 {[%clk 0:03:00]}  Nxe4 {[%clk 0:02:59]} 3. d5 {[%clk 0:02:51]}  Nf6 {[%clk 0:02:59]} 4. Nf3 {[%clk 0:02:50]}  g6 {[%clk 0:02:58]} 5. h4 {[%clk 0:02:40]}  h5 {[%clk 0:02:58]} 6. Bg5 {[%clk 0:02:39]}  Bg7 {[%clk 0:02:58]} 7. c4 {[%clk 0:02:36]}  O-O {[%clk 0:02:57]} 8. Bd3 {[%clk 0:02:35]}  c6 {[%clk 0:02:57]} 9. Nc3 {[%clk 0:02:35]}  d6 {[%clk 0:02:51]} 10. Qc2 {[%clk 0:02:17]}  cxd5 {[%clk 0:02:44]} 11. cxd5 {[%clk 0:02:05]}  Na6 {[%clk 0:02:43]} 12. O-O-O {[%clk 0:01:59]}  Nb4 {[%clk 0:02:40]} 13. Qe2 {[%clk 0:01:40]}  Nxd3+ {[%clk 0:02:38]} 14. Rxd3 {[%clk 0:01:40]}  Bg4 {[%clk 0:02:27]} 15. Re3 {[%clk 0:01:37]}  Qa5 {[%clk 0:02:17]} 16. Kb1 {[%clk 0:01:27]}  Nxd5 {[%clk 0:02:11]} 17. Nxd5 {[%clk 0:01:23]}  Qxd5 {[%clk 0:02:10]} 18. Bxe7 {[%clk 0:01:10]}  Rfc8 {[%clk 0:02:01]} 19. Rd1 {[%clk 0:01:03]}  Bf5+ {[%clk 0:01:52]} 20. Ka1 {[%clk 0:00:58]}  Be6 {[%clk 0:01:39]} 21. Ra3 {[%clk 0:00:30]}  Qc5 {[%clk 0:01:31]} 22. Kb1 {[%clk 0:00:20]}  Bf5+ {[%clk 0:01:21]} 23. Rad3 {[%clk 0:00:18]}  Re8 {[%clk 0:00:52]} 24. Bxd6 {[%clk 0:00:12]}  Qb5 {[%clk 0:00:41]} 25. Qc2 {[%clk 0:00:10]}  Rac8 {[%clk 0:00:37]} 26. Qb3 {[%clk 0:00:08]}  Bxd3+ {[%clk 0:00:26]} 27. Rxd3 {[%clk 0:00:08]}  Qc6 {[%clk 0:00:23]} 28. Rd1 {[%clk 0:00:08]}  Rcd8 {[%clk 0:00:22]} 29. Bf4 {[%clk 0:00:07]}  Qe4+ {[%clk 0:00:21]} 0-1


[Site "https://www.chess.com"]

[Event "Titled Tuesday Blitz March 15 Early 2022"]
[White "Postny, Evgeny"]
[Black "Koellner, Ruben Gideon"]
[WhiteFideId "2804344"]
[BlackFideId "12993093"]
[WhiteElo "2483"]
[BlackElo "2480"]
[Result "1-0"]
[Round "10"]
[TimeControl "180+1"]
[Date "2022.03.15"]
[WhiteClock "0:00:07"]
[BlackClock "0:00:06"]

1. Nf3 {[%clk 0:02:50]}  d6 {[%clk 0:02:59]} 2. d4 {[%clk 0:02:47]}  Nf6 {[%clk 0:02:58]} 3. c4 {[%clk 0:02:48]}  g6 {[%clk 0:02:58]} 4. Nc3 {[%clk 0:02:48]}  Bf5 {[%clk 0:02:58]} 5. e3 {[%clk 0:02:45]}  Ne4 {[%clk 0:02:57]} 6. Nxe4 {[%clk 0:02:43]}  Bxe4 {[%clk 0:02:58]} 7. Bd3 {[%clk 0:02:44]}  Bxd3 {[%clk 0:02:58]} 8. Qxd3 {[%clk 0:02:44]}  Bg7 {[%clk 0:02:59]} 9. O-O {[%clk 0:02:44]}  O-O {[%clk 0:03:00]} 10. b3 {[%clk 0:02:44]}  c5 {[%clk 0:03:00]} 11. Bb2 {[%clk 0:02:44]}  Nc6 {[%clk 0:03:00]} 12. Rfd1 {[%clk 0:02:41]}  Qc7 {[%clk 0:02:58]} 13. Rac1 {[%clk 0:02:39]}  b6 {[%clk 0:02:58]} 14. Qb1 {[%clk 0:02:39]}  a6 {[%clk 0:02:55]} 15. d5 {[%clk 0:02:30]}  Bxb2 {[%clk 0:02:54]} 16. Qxb2 {[%clk 0:02:31]}  Na7 {[%clk 0:02:52]} 17. e4 {[%clk 0:02:29]}  b5 {[%clk 0:02:51]} 18. e5 {[%clk 0:02:28]}  bxc4 {[%clk 0:02:49]} 19. Rxc4 {[%clk 0:02:25]}  Nc8 {[%clk 0:02:49]} 20. Rh4 {[%clk 0:02:13]}  dxe5 {[%clk 0:02:27]} 21. Nxe5 {[%clk 0:02:05]}  f6 {[%clk 0:02:20]} 22. Nc6 {[%clk 0:01:48]}  Nd6 {[%clk 0:02:11]} 23. Qc2 {[%clk 0:01:35]}  Nb7 {[%clk 0:02:03]} 24. Qe4 {[%clk 0:01:24]}  Rf7 {[%clk 0:02:02]} 25. Qe6 {[%clk 0:01:16]}  Qd6 {[%clk 0:01:55]} 26. Re1 {[%clk 0:01:01]}  Re8 {[%clk 0:01:37]} 27. Ra4 {[%clk 0:00:55]}  a5 {[%clk 0:01:05]} 28. Qxd6 {[%clk 0:00:51]}  Nxd6 {[%clk 0:01:05]} 29. Rxa5 {[%clk 0:00:50]}  c4 {[%clk 0:01:02]} 30. b4 {[%clk 0:00:46]}  Kf8 {[%clk 0:00:55]} 31. b5 {[%clk 0:00:44]}  e5 {[%clk 0:00:48]} 32. dxe6 {[%clk 0:00:41]}  Rb7 {[%clk 0:00:47]} 33. a4 {[%clk 0:00:34]}  f5 {[%clk 0:00:17]} 34. f3 {[%clk 0:00:26]}  f4 {[%clk 0:00:14]} 35. Nb4 {[%clk 0:00:18]}  Rc8 {[%clk 0:00:11]} 36. Ra6 {[%clk 0:00:16]}  Nf5 {[%clk 0:00:11]} 37. Nd5 {[%clk 0:00:12]}  Ne7 {[%clk 0:00:09]} 38. Nxf4 {[%clk 0:00:11]}  c3 {[%clk 0:00:09]} 39. Rc1 {[%clk 0:00:11]}  Rbc7 {[%clk 0:00:08]} 40. Rd6 {[%clk 0:00:10]}  Ra7 {[%clk 0:00:08]} 41. Rd4 {[%clk 0:00:10]}  Nf5 {[%clk 0:00:07]} 42. Re4 {[%clk 0:00:09]}  Ne7 {[%clk 0:00:07]} 43. Ne2 {[%clk 0:00:08]}  c2 {[%clk 0:00:06]} 44. Kf2 {[%clk 0:00:09]}  Rac7 {[%clk 0:00:06]} 45. b6 {[%clk 0:00:08]}  Rb7 {[%clk 0:00:06]} 46. a5 {[%clk 0:00:08]}  Ra8 {[%clk 0:00:06]} 47. Ra4 {[%clk 0:00:08]}  Nc6 {[%clk 0:00:06]} 48. Rxc2 {[%clk 0:00:08]}  Rxa5 {[%clk 0:00:06]} 49. Rxa5 {[%clk 0:00:08]}  Nxa5 {[%clk 0:00:07]} 50. Rc8+ {[%clk 0:00:08]}  Ke7 {[%clk 0:00:06]} 51. Rc7+ {[%clk 0:00:06]}  Kxe6 {[%clk 0:00:07]} 52. Nf4+ {[%clk 0:00:05]}  Kd6 {[%clk 0:00:06]} 53. Rxb7 {[%clk 0:00:03]}  Nxb7 {[%clk 0:00:07]} 54. Kg3 {[%clk 0:00:03]}  Kc6 {[%clk 0:00:06]} 55. Ne6 {[%clk 0:00:03]}  Nd6 {[%clk 0:00:04]} 56. Nf8 {[%clk 0:00:02]}  Nf5+ {[%clk 0:00:04]} 57. Kf4 {[%clk 0:00:03]}  Nh4 {[%clk 0:00:03]} 58. g3 {[%clk 0:00:03]}  Ng2+ {[%clk 0:00:03]} 59. Kg5 {[%clk 0:00:03]}  Kxb6 {[%clk 0:00:04]} 60. Nxh7 {[%clk 0:00:03]}  Ne1 {[%clk 0:00:04]} 61. Kg4 {[%clk 0:00:03]}  Kc5 {[%clk 0:00:04]} 62. Nf8 {[%clk 0:00:03]}  g5 {[%clk 0:00:04]} 63. Ne6+ {[%clk 0:00:03]}  Kd6 {[%clk 0:00:04]} 64. Nxg5 {[%clk 0:00:04]}  Ke5 {[%clk 0:00:05]} 65. Ne4 {[%clk 0:00:05]}  Nd3 {[%clk 0:00:05]} 66. h4 {[%clk 0:00:05]}  Ke6 {[%clk 0:00:05]} 67. h5 {[%clk 0:00:05]}  Ne5+ {[%clk 0:00:05]} 68. Kf4 {[%clk 0:00:05]}  Nd3+ {[%clk 0:00:06]} 69. Kg5 {[%clk 0:00:05]}  Ne5 {[%clk 0:00:06]} 70. f4 {[%clk 0:00:05]}  Nf3+ {[%clk 0:00:05]} 71. Kg4 {[%clk 0:00:05]}  Nh2+ {[%clk 0:00:05]} 72. Kh3 {[%clk 0:00:05]}  Nf3 {[%clk 0:00:05]} 73. Ng5+ {[%clk 0:00:06]}  Nxg5+ {[%clk 0:00:05]} 74. fxg5 {[%clk 0:00:06]}  Kf5 {[%clk 0:00:06]} 75. Kh4 {[%clk 0:00:07]} 1-0


[Site "https://www.chess.com"]

[Event "Titled Tuesday Blitz March 15 Early 2022"]
[White "Rustemov, Alexander"]
[Black "Kamsky, Gata"]
[WhiteFideId "4119002"]
[BlackFideId "2000024"]
[WhiteElo "2777"]
[BlackElo "2645"]
[Result "1/2-1/2"]
[Round "10"]
[TimeControl "180+1"]
[Date "2022.03.15"]
[WhiteClock "0:01:41"]
[BlackClock "0:01:43"]

1. d4 {[%clk 0:02:47]}  Nf6 {[%clk 0:02:59]} 2. c4 {[%clk 0:02:46]}  g6 {[%clk 0:02:57]} 3. Nf3 {[%clk 0:02:46]}  Bg7 {[%clk 0:02:57]} 4. g3 {[%clk 0:02:47]}  O-O {[%clk 0:02:56]} 5. Bg2 {[%clk 0:02:47]}  c6 {[%clk 0:02:56]} 6. Nc3 {[%clk 0:02:47]}  d5 {[%clk 0:02:56]} 7. Qb3 {[%clk 0:02:48]}  dxc4 {[%clk 0:02:49]} 8. Qxc4 {[%clk 0:02:49]}  Be6 {[%clk 0:02:43]} 9. Qa4 {[%clk 0:02:48]}  Qb6 {[%clk 0:02:42]} 10. O-O {[%clk 0:02:46]}  Rd8 {[%clk 0:02:41]} 11. Rd1 {[%clk 0:02:45]}  a5 {[%clk 0:02:40]} 12. Qc2 {[%clk 0:02:38]}  Na6 {[%clk 0:02:40]} 13. a3 {[%clk 0:02:34]}  Bb3 {[%clk 0:02:38]} 14. Qd3 {[%clk 0:02:24]}  Bxd1 {[%clk 0:02:36]} 15. Qxd1 {[%clk 0:02:23]}  Nc7 {[%clk 0:02:32]} 16. Qc2 {[%clk 0:02:18]}  Qa6 {[%clk 0:02:23]} 17. Na4 {[%clk 0:02:15]}  Ne6 {[%clk 0:02:21]} 18. e3 {[%clk 0:02:10]}  b5 {[%clk 0:02:16]} 19. Nc5 {[%clk 0:02:04]}  Nxc5 {[%clk 0:02:15]} 20. Qxc5 {[%clk 0:02:03]}  Nd5 {[%clk 0:01:58]} 21. Bd2 {[%clk 0:01:51]}  Qb6 {[%clk 0:01:56]} 22. Qc2 {[%clk 0:01:47]}  Rac8 {[%clk 0:01:55]} 23. Rc1 {[%clk 0:01:46]}  e6 {[%clk 0:01:51]} 24. Ne1 {[%clk 0:01:46]}  e5 {[%clk 0:01:45]} 25. dxe5 {[%clk 0:01:40]}  Bxe5 {[%clk 0:01:44]} 26. Nd3 {[%clk 0:01:41]}  Bg7 {[%clk 0:01:43]} 27. b4 {[%clk 0:01:40]}  axb4 {[%clk 0:01:43]} 28. axb4 {[%clk 0:01:41]} 1/2-1/2


[Site "https://www.chess.com"]

[Event "Titled Tuesday Blitz March 15 Early 2022"]
[White "Samadov, Read"]
[Black "Rosen, Eric"]
[WhiteFideId "13417444"]
[BlackFideId "2032562"]
[WhiteElo "2084"]
[BlackElo "2362"]
[Result "1-0"]
[Round "10"]
[TimeControl "180+1"]
[Date "2022.03.15"]
[WhiteClock "0:00:16"]
[BlackClock "0:00:23"]

1. d4 {[%clk 0:03:00]}  d5 {[%clk 0:02:59]} 2. c4 {[%clk 0:03:01]}  e6 {[%clk 0:03:00]} 3. Nf3 {[%clk 0:03:01]}  Nf6 {[%clk 0:03:00]} 4. g3 {[%clk 0:03:02]}  dxc4 {[%clk 0:03:00]} 5. Bg2 {[%clk 0:03:02]}  Bb4+ {[%clk 0:03:01]} 6. Bd2 {[%clk 0:03:02]}  c5 {[%clk 0:03:02]} 7. O-O {[%clk 0:03:01]}  O-O {[%clk 0:03:02]} 8. Qc2 {[%clk 0:02:58]}  Nbd7 {[%clk 0:03:01]} 9. Qxc4 {[%clk 0:02:56]}  Nb6 {[%clk 0:02:30]} 10. Qc2 {[%clk 0:02:51]}  Bxd2 {[%clk 0:02:28]} 11. Nbxd2 {[%clk 0:02:51]}  cxd4 {[%clk 0:02:28]} 12. Nb3 {[%clk 0:02:50]}  d3 {[%clk 0:02:07]} 13. Qxd3 {[%clk 0:02:42]}  Qxd3 {[%clk 0:02:06]} 14. exd3 {[%clk 0:02:42]}  Bd7 {[%clk 0:02:06]} 15. Ne5 {[%clk 0:02:43]}  Rab8 {[%clk 0:02:06]} 16. Nc5 {[%clk 0:02:39]}  Rfc8 {[%clk 0:01:51]} 17. d4 {[%clk 0:02:37]}  Bb5 {[%clk 0:01:48]} 18. Rfc1 {[%clk 0:02:27]}  Nbd5 {[%clk 0:01:48]} 19. a4 {[%clk 0:02:26]}  Be8 {[%clk 0:01:42]} 20. a5 {[%clk 0:02:21]}  Kf8 {[%clk 0:01:38]} 21. Bxd5 {[%clk 0:02:12]}  Nxd5 {[%clk 0:01:38]} 22. Ncd7+ {[%clk 0:02:10]}  Ke7 {[%clk 0:01:33]} 23. Nxb8 {[%clk 0:02:10]}  Rxb8 {[%clk 0:01:34]} 24. Rc2 {[%clk 0:02:03]}  f6 {[%clk 0:01:32]} 25. Nc4 {[%clk 0:02:02]}  Bg6 {[%clk 0:01:32]} 26. Rd2 {[%clk 0:02:02]}  Rc8 {[%clk 0:01:30]} 27. b3 {[%clk 0:02:02]}  h5 {[%clk 0:01:23]} 28. Re1 {[%clk 0:01:59]}  Kd7 {[%clk 0:01:19]} 29. h4 {[%clk 0:01:53]}  Nb4 {[%clk 0:01:13]} 30. Ra1 {[%clk 0:01:11]}  Nc2 {[%clk 0:01:07]} 31. Rc1 {[%clk 0:01:05]}  Nb4 {[%clk 0:01:05]} 32. f3 {[%clk 0:00:53]}  Bf5 {[%clk 0:01:03]} 33. Ra1 {[%clk 0:00:43]}  Nc2 {[%clk 0:01:02]} 34. Ra4 {[%clk 0:00:39]}  Kc6 {[%clk 0:00:48]} 35. Kf2 {[%clk 0:00:34]}  Kd5 {[%clk 0:00:45]} 36. Kg2 {[%clk 0:00:18]}  Bh7 {[%clk 0:00:39]} 37. g4 {[%clk 0:00:16]}  hxg4 {[%clk 0:00:38]} 38. fxg4 {[%clk 0:00:17]}  Be4+ {[%clk 0:00:37]} 39. Kg3 {[%clk 0:00:16]}  Ne1 {[%clk 0:00:30]} 40. Ne3+ {[%clk 0:00:13]}  Kd6 {[%clk 0:00:29]} 41. d5 {[%clk 0:00:13]}  e5 {[%clk 0:00:26]} 42. Rxe4 {[%clk 0:00:12]}  Rc1 {[%clk 0:00:20]} 43. Nf5+ {[%clk 0:00:11]}  Kd7 {[%clk 0:00:20]} 44. d6 {[%clk 0:00:11]}  Rc3+ {[%clk 0:00:20]} 45. Kf2 {[%clk 0:00:10]}  Nc2 {[%clk 0:00:20]} 46. Rc4 {[%clk 0:00:09]}  Rxc4 {[%clk 0:00:15]} 47. bxc4 {[%clk 0:00:10]}  e4 {[%clk 0:00:16]} 48. Rxc2 {[%clk 0:00:10]}  g6 {[%clk 0:00:15]} 49. Ke3 {[%clk 0:00:10]}  gxf5 {[%clk 0:00:16]} 50. gxf5 {[%clk 0:00:10]}  Kxd6 {[%clk 0:00:17]} 51. h5 {[%clk 0:00:11]}  Ke7 {[%clk 0:00:17]} 52. h6 {[%clk 0:00:12]}  Kf7 {[%clk 0:00:18]} 53. h7 {[%clk 0:00:12]}  Kg7 {[%clk 0:00:19]} 54. Rh2 {[%clk 0:00:12]}  Kh8 {[%clk 0:00:19]} 55. Kxe4 {[%clk 0:00:13]}  b6 {[%clk 0:00:20]} 56. Kd5 {[%clk 0:00:13]}  bxa5 {[%clk 0:00:20]} 57. c5 {[%clk 0:00:14]}  a4 {[%clk 0:00:21]} 58. c6 {[%clk 0:00:14]}  a3 {[%clk 0:00:21]} 59. c7 {[%clk 0:00:15]}  a2 {[%clk 0:00:22]} 60. c8=Q+ {[%clk 0:00:15]}  Kg7 {[%clk 0:00:23]} 61. Qg8# {[%clk 0:00:16]} 1-0


[Site "https://www.chess.com"]

[Event "Titled Tuesday Blitz March 15 Early 2022"]
[White "Sanchez, Robert"]
[Black "Secer, Ata"]
[WhiteFideId "2034360"]
[BlackFideId "6303293"]
[WhiteElo "2330"]
[BlackElo "2282"]
[Result "0-1"]
[Round "10"]
[TimeControl "180+1"]
[Date "2022.03.15"]
[WhiteClock "0:00:39"]
[BlackClock "0:00:12"]

1. e4 {[%clk 0:02:57]}  c5 {[%clk 0:02:59]} 2. Nf3 {[%clk 0:02:57]}  e6 {[%clk 0:03:00]} 3. d4 {[%clk 0:02:57]}  cxd4 {[%clk 0:03:00]} 4. Nxd4 {[%clk 0:02:58]}  Nc6 {[%clk 0:03:01]} 5. Nc3 {[%clk 0:02:57]}  Qc7 {[%clk 0:03:02]} 6. Nb3 {[%clk 0:02:55]}  a6 {[%clk 0:02:58]} 7. Bd3 {[%clk 0:02:55]}  Nf6 {[%clk 0:02:57]} 8. Be3 {[%clk 0:02:53]}  b5 {[%clk 0:02:55]} 9. a3 {[%clk 0:02:53]}  Bb7 {[%clk 0:02:56]} 10. O-O {[%clk 0:02:53]}  Be7 {[%clk 0:02:56]} 11. f4 {[%clk 0:02:50]}  d6 {[%clk 0:02:56]} 12. Kh1 {[%clk 0:02:50]}  O-O {[%clk 0:02:51]} 13. Rf3 {[%clk 0:02:49]}  e5 {[%clk 0:02:45]} 14. Rh3 {[%clk 0:02:46]}  exf4 {[%clk 0:02:40]} 15. Bxf4 {[%clk 0:02:44]}  Ne5 {[%clk 0:02:41]} 16. Nd5 {[%clk 0:02:33]}  Nxd5 {[%clk 0:02:26]} 17. exd5 {[%clk 0:02:33]}  Nxd3 {[%clk 0:02:14]} 18. Qxd3 {[%clk 0:02:29]}  g6 {[%clk 0:02:06]} 19. Bh6 {[%clk 0:02:19]}  Rfe8 {[%clk 0:02:06]} 20. Rf1 {[%clk 0:02:14]}  Bf8 {[%clk 0:02:00]} 21. Bxf8 {[%clk 0:02:13]}  Rxf8 {[%clk 0:02:00]} 22. Nd4 {[%clk 0:01:49]}  Qc4 {[%clk 0:01:23]} 23. Qxc4 {[%clk 0:01:19]}  bxc4 {[%clk 0:01:24]} 24. Nc6 {[%clk 0:01:20]}  Bxc6 {[%clk 0:01:22]} 25. dxc6 {[%clk 0:01:20]}  Rac8 {[%clk 0:01:21]} 26. Rc3 {[%clk 0:01:15]}  Rxc6 {[%clk 0:01:22]} 27. Rd1 {[%clk 0:01:16]}  Rfc8 {[%clk 0:01:19]} 28. Kg1 {[%clk 0:01:16]}  Kf8 {[%clk 0:01:19]} 29. Kf2 {[%clk 0:01:16]}  Ke7 {[%clk 0:01:20]} 30. Ke3 {[%clk 0:01:17]}  Rc5 {[%clk 0:01:20]} 31. Kd4 {[%clk 0:01:16]}  Ke6 {[%clk 0:01:10]} 32. Re1+ {[%clk 0:01:16]}  Re5 {[%clk 0:01:09]} 33. Rce3 {[%clk 0:01:09]}  f6 {[%clk 0:01:06]} 34. Re4 {[%clk 0:01:05]}  Rc5 {[%clk 0:00:57]} 35. g4 {[%clk 0:01:03]}  a5 {[%clk 0:00:48]} 36. h3 {[%clk 0:01:02]}  Rb5 {[%clk 0:00:21]} 37. Kc3 {[%clk 0:00:57]}  d5 {[%clk 0:00:20]} 38. R4e2 {[%clk 0:00:51]}  Kd6 {[%clk 0:00:15]} 39. b3 {[%clk 0:00:49]}  cxb3 {[%clk 0:00:15]} 40. cxb3 {[%clk 0:00:49]}  Rb8 {[%clk 0:00:13]} 41. b4 {[%clk 0:00:48]}  axb4+ {[%clk 0:00:13]} 42. axb4 {[%clk 0:00:48]}  Rbe8 {[%clk 0:00:12]} 43. Rxe5 {[%clk 0:00:45]}  fxe5 {[%clk 0:00:13]} 44. Rf1 {[%clk 0:00:44]}  d4+ {[%clk 0:00:10]} 45. Kc4 {[%clk 0:00:43]}  Rc8+ {[%clk 0:00:11]} 46. Kd3 {[%clk 0:00:44]}  Kd5 {[%clk 0:00:11]} 47. Rf7 {[%clk 0:00:42]}  Rc3+ {[%clk 0:00:12]} 48. Kd2 {[%clk 0:00:43]}  Rb3 {[%clk 0:00:12]} 49. Rxh7 {[%clk 0:00:39]}  Rxb4 {[%clk 0:00:12]} 50. Rd7+ {[%clk 0:00:38]}  Ke4 {[%clk 0:00:12]} 51. Re7 {[%clk 0:00:38]}  Rb2+ {[%clk 0:00:11]} 52. Kd1 {[%clk 0:00:39]}  Rh2 {[%clk 0:00:12]} 0-1


[Site "https://www.chess.com"]

[Event "Titled Tuesday Blitz March 15 Early 2022"]
[White "Santos Ruiz, Miguel"]
[Black "Yang, Kaiqi"]
[WhiteFideId "22291482"]
[BlackFideId "8604398"]
[WhiteElo "2486"]
[BlackElo "2373"]
[Result "1/2-1/2"]
[Round "10"]
[TimeControl "180+1"]
[Date "2022.03.15"]
[WhiteClock "0:01:35"]
[BlackClock "0:00:50"]

1. Nf3 {[%clk 0:02:58]}  e6 {[%clk 0:03:00]} 2. d4 {[%clk 0:02:58]}  f5 {[%clk 0:03:00]} 3. Bf4 {[%clk 0:02:53]}  Nf6 {[%clk 0:03:00]} 4. e3 {[%clk 0:02:53]}  b6 {[%clk 0:02:53]} 5. Bd3 {[%clk 0:02:36]}  Bb7 {[%clk 0:02:53]} 6. h3 {[%clk 0:02:35]}  Bd6 {[%clk 0:02:45]} 7. Ne5 {[%clk 0:02:30]}  O-O {[%clk 0:02:41]} 8. Nd2 {[%clk 0:02:27]}  Nc6 {[%clk 0:02:38]} 9. Rg1 {[%clk 0:02:21]}  Nd5 {[%clk 0:02:12]} 10. Bh2 {[%clk 0:02:14]}  Nxe5 {[%clk 0:01:27]} 11. dxe5 {[%clk 0:02:09]}  Be7 {[%clk 0:01:27]} 12. Qe2 {[%clk 0:02:01]}  Nb4 {[%clk 0:01:24]} 13. Nc4 {[%clk 0:01:50]}  Nxd3+ {[%clk 0:01:14]} 14. Qxd3 {[%clk 0:01:50]}  Be4 {[%clk 0:01:03]} 15. Qd2 {[%clk 0:01:48]}  Bd5 {[%clk 0:01:03]} 16. Qd3 {[%clk 0:01:43]}  Be4 {[%clk 0:01:00]} 17. Qd2 {[%clk 0:01:43]}  Bd5 {[%clk 0:01:00]} 18. Qd3 {[%clk 0:01:35]}  Be4 {[%clk 0:00:50]} 1/2-1/2


[Site "https://www.chess.com"]